[Event "Early-Titled-Tuesday-Blitz-April-16-2024"]
[Site "Chess.com"]
[Date "2024.04.16"]
[Round "7"]
[White "N_I_Chess"]
[Black "Djager97"]
[Result "0-1"]
[WhiteElo "2389"]
[BlackElo "2561"]
[TimeControl "180+1"]
[EndTime "9:21:13 PDT"]
[Termination "Djager97 won by resignation"]

1. d4 {[%clk 0:03:00.9]} 1... Nf6 {[%clk 0:02:59.9]} 2. c4 {[%clk 0:03:00.6]}
2... c5 {[%clk 0:03:00.2]} 3. d5 {[%clk 0:03:00.5]} 3... d6 {[%clk 0:03:00.7]}
4. Nc3 {[%clk 0:02:58.9]} 4... g6 {[%clk 0:03:01.2]} 5. e4 {[%clk 0:02:58.4]}
5... Bg7 {[%clk 0:03:01.8]} 6. f4 {[%clk 0:02:58.6]} 6... O-O {[%clk 0:03:02]}
7. Nf3 {[%clk 0:02:56.8]} 7... e6 {[%clk 0:03:02.5]} 8. Be2 {[%clk 0:02:56.3]}
8... exd5 {[%clk 0:03:02.5]} 9. cxd5 {[%clk 0:02:57.2]} 9... b5 {[%clk
0:03:03.1]} 10. e5 {[%clk 0:02:56.5]} 10... dxe5 {[%clk 0:03:02]} 11. fxe5
{[%clk 0:02:57.4]} 11... Ng4 {[%clk 0:03:02.7]} 12. Bg5 {[%clk 0:02:36.7]} 12...
Qb6 {[%clk 0:03:03]} 13. O-O {[%clk 0:02:27.4]} 13... c4+ {[%clk 0:03:03.4]} 14.
Kh1 {[%clk 0:02:27]} 14... Bb7 {[%clk 0:03:04]} 15. Ne4 {[%clk 0:01:56.7]} 15...
Nd7 {[%clk 0:03:02.7]} 16. Nd6 {[%clk 0:01:31.2]} 16... Ndxe5 {[%clk 0:02:54.8]}
17. Nxb7 {[%clk 0:01:28.4]} 17... Qxb7 {[%clk 0:02:51.7]} 18. Qd2 {[%clk
0:01:08.3]} 18... Nxf3 {[%clk 0:02:45.9]} 19. Bxf3 {[%clk 0:01:08]} 19... Ne5
{[%clk 0:02:46.4]} 20. d6 {[%clk 0:00:20.5]} 20... Nxf3 {[%clk 0:02:45.7]} 21.
Rxf3 {[%clk 0:00:21.4]} 21... f6 {[%clk 0:02:33.5]} 22. Bh6 {[%clk 0:00:19.6]}
22... Rad8 {[%clk 0:02:32.2]} 23. Bxg7 {[%clk 0:00:19.5]} 23... Kxg7 {[%clk
0:02:33.1]} 24. Rd1 {[%clk 0:00:19.4]} 24... Rd7 {[%clk 0:02:30.5]} 25. Qd4
{[%clk 0:00:18]} 25... Qc6 {[%clk 0:02:24.8]} 26. h3 {[%clk 0:00:15]} 26... a5
{[%clk 0:01:52]} 27. a3 {[%clk 0:00:10.5]} 27... b4 {[%clk 0:01:50.5]} 28. Re3
{[%clk 0:00:10.9]} 28... Rff7 {[%clk 0:01:48]} 29. axb4 {[%clk 0:00:09.6]} 29...
axb4 {[%clk 0:01:47.9]} 30. Re2 {[%clk 0:00:08.8]} 30... Rf8 {[%clk 0:01:41.2]}
31. Rc2 {[%clk 0:00:07.3]} 31... Rfd8 {[%clk 0:01:40.1]} 32. Rxc4 {[%clk
0:00:04.8]} 32... Rxd6 {[%clk 0:01:40.3]} 33. Rxc6 {[%clk 0:00:04.4]} 33... Rxd4
{[%clk 0:01:40.2]} 34. Rxd4 {[%clk 0:00:05]} 34... Rxd4 {[%clk 0:01:40.8]} 35.
Rc7+ {[%clk 0:00:05.7]} 35... Kh6 {[%clk 0:01:38.4]} 36. Rb7 {[%clk 0:00:06.1]}
36... Kg5 {[%clk 0:01:33.4]} 37. Kg1 {[%clk 0:00:06.2]} 37... h5 {[%clk
0:01:33.3]} 38. Kh2 {[%clk 0:00:06.1]} 38... h4 {[%clk 0:01:33.2]} 39. Rb6
{[%clk 0:00:06.2]} 39... Kf5 {[%clk 0:01:30.7]} 40. Rb5+ {[%clk 0:00:05.6]}
40... Ke4 {[%clk 0:01:29]} 41. Rb6 {[%clk 0:00:06.5]} 41... Kd3 {[%clk
0:01:18.9]} 42. Rxf6 {[%clk 0:00:05.1]} 42... Kc2 {[%clk 0:01:19.4]} 43. Rf2+
{[%clk 0:00:04]} 43... Kb3 {[%clk 0:01:16.9]} 44. g3 {[%clk 0:00:03.6]} 44... g5
{[%clk 0:01:14.9]} 45. gxh4 {[%clk 0:00:03.8]} 45... gxh4 {[%clk 0:01:15.8]} 46.
Kg2 {[%clk 0:00:04.4]} 46... Rc4 {[%clk 0:01:16]} 47. Kf3 {[%clk 0:00:04.8]}
47... Rc2 {[%clk 0:01:15.4]} 48. Rf1 {[%clk 0:00:05]} 48... Kxb2 {[%clk
0:01:14.1]} 49. Kg4 {[%clk 0:00:05.4]} 49... Rc4+ {[%clk 0:01:14.2]} 50. Kh5
{[%clk 0:00:05.2]} 50... b3 {[%clk 0:01:14.3]} 51. Rg1 {[%clk 0:00:04.8]} 51...
Ka2 {[%clk 0:01:13.9]} 52. Rg4 {[%clk 0:00:04.9]} 52... Rxg4 {[%clk 0:01:13.7]}
53. Kxg4 {[%clk 0:00:05.8]} 53... b2 {[%clk 0:01:13.9]} 54. Kxh4 {[%clk
0:00:06.7]} 54... b1=Q {[%clk 0:01:14.8]} 55. Kh5 {[%clk 0:00:06.5]} 55... Qh7+
{[%clk 0:01:14.7]} 56. Kg4 {[%clk 0:00:06.5]} 56... Kb3 {[%clk 0:01:15.6]} 57.
h4 {[%clk 0:00:06.6]} 57... Kc4 {[%clk 0:01:15.9]} 58. h5 {[%clk 0:00:06.9]}
58... Kd4 {[%clk 0:01:16.3]} 59. Kh4 {[%clk 0:00:07.4]} 59... Ke4 {[%clk
0:01:16.5]} 60. Kg5 {[%clk 0:00:07.5]} 60... Qg7+ {[%clk 0:01:16.6]} 61. Kh4
{[%clk 0:00:07.5]} 61... Kf4 {[%clk 0:01:17.4]} 0-1

[Event "Early-Titled-Tuesday-Blitz-April-16-2024"]
[Site "Chess.com"]
[Date "2024.04.16"]
[Round "7"]
[White "sokidze"]
[Black "MokshAD1603"]
[Result "0-1"]
[WhiteElo "2802"]
[BlackElo "2628"]
[TimeControl "180+1"]
[EndTime "9:21:15 PDT"]
[Termination "MokshAD1603 won on time"]

1. e4 {[%clk 0:03:00.9]} 1... e5 {[%clk 0:02:48.6]} 2. Nf3 {[%clk 0:03:01.1]}
2... Nc6 {[%clk 0:02:43]} 3. Bb5 {[%clk 0:03:00.9]} 3... a6 {[%clk 0:02:43.1]}
4. Ba4 {[%clk 0:03:01.3]} 4... Nf6 {[%clk 0:02:43.8]} 5. Nc3 {[%clk 0:03:01.9]}
5... Be7 {[%clk 0:02:40.2]} 6. d3 {[%clk 0:02:58.8]} 6... b5 {[%clk 0:02:38.9]}
7. Bb3 {[%clk 0:02:58.4]} 7... d6 {[%clk 0:02:39.6]} 8. a3 {[%clk 0:02:49.5]}
8... Bg4 {[%clk 0:02:38.1]} 9. Be3 {[%clk 0:02:49.7]} 9... Nd4 {[%clk
0:02:22.4]} 10. Bxd4 {[%clk 0:02:47.8]} 10... exd4 {[%clk 0:02:22.5]} 11. Nd5
{[%clk 0:02:45.9]} 11... c6 {[%clk 0:02:12]} 12. Nf4 {[%clk 0:02:20.1]} 12... d5
{[%clk 0:01:36.9]} 13. exd5 {[%clk 0:01:53.1]} 13... Qd6 {[%clk 0:01:34.3]} 14.
h3 {[%clk 0:01:35.4]} 14... Qxf4 {[%clk 0:01:17.1]} 15. hxg4 {[%clk 0:01:35.5]}
15... c5 {[%clk 0:01:18]} 16. g5 {[%clk 0:01:05.8]} 16... Ng4 {[%clk 0:01:18]}
17. Qc1 {[%clk 0:01:00]} 17... Bxg5 {[%clk 0:01:12.8]} 18. Qxf4 {[%clk
0:00:52.3]} 18... Bxf4 {[%clk 0:01:13.7]} 19. O-O {[%clk 0:00:48.3]} 19... Kd7
{[%clk 0:01:10.5]} 20. g3 {[%clk 0:00:40.2]} 20... Bd6 {[%clk 0:01:10.1]} 21. c4
{[%clk 0:00:34.5]} 21... Rab8 {[%clk 0:01:05.3]} 22. Rab1 {[%clk 0:00:29.8]}
22... Rhe8 {[%clk 0:01:01.8]} 23. Bd1 {[%clk 0:00:29.7]} 23... Nf6 {[%clk
0:00:57.9]} 24. Nd2 {[%clk 0:00:27.8]} 24... Kc7 {[%clk 0:00:52.1]} 25. Bf3
{[%clk 0:00:25.9]} 25... b4 {[%clk 0:00:51.5]} 26. Ra1 {[%clk 0:00:13.5]} 26...
bxa3 {[%clk 0:00:49.3]} 27. b3 {[%clk 0:00:11.9]} 27... Nd7 {[%clk 0:00:42.1]}
28. Rxa3 {[%clk 0:00:10.9]} 28... Rb6 {[%clk 0:00:42.7]} 29. Rfa1 {[%clk
0:00:10.5]} 29... Ra8 {[%clk 0:00:36.3]} 30. Ra5 {[%clk 0:00:09.3]} 30... g6
{[%clk 0:00:36.3]} 31. Kg2 {[%clk 0:00:08.1]} 31... f5 {[%clk 0:00:36]} 32. Rh1
{[%clk 0:00:07.5]} 32... h5 {[%clk 0:00:36.3]} 33. Re1 {[%clk 0:00:08.1]} 33...
Ne5 {[%clk 0:00:35.4]} 34. Be2 {[%clk 0:00:08.3]} 34... Re8 {[%clk 0:00:35.6]}
35. Rea1 {[%clk 0:00:07.8]} 35... Nd7 {[%clk 0:00:34.2]} 36. Bf1 {[%clk
0:00:06.5]} 36... Nb8 {[%clk 0:00:34.5]} 37. R5a3 {[%clk 0:00:03.1]} 37... Bf8
{[%clk 0:00:33.6]} 38. Nf3 {[%clk 0:00:03.3]} 38... Bh6 {[%clk 0:00:33.3]} 39.
Nh4 {[%clk 0:00:03.6]} 39... Rg8 {[%clk 0:00:32.3]} 40. Be2 {[%clk 0:00:03.9]}
40... Re8 {[%clk 0:00:32.3]} 41. R1a2 {[%clk 0:00:03]} 41... Kb7 {[%clk
0:00:29.4]} 42. Bf1 {[%clk 0:00:01.1]} 42... Bc1 {[%clk 0:00:28]} 0-1

[Event "Early-Titled-Tuesday-Blitz-April-16-2024"]
[Site "Chess.com"]
[Date "2024.04.16"]
[Round "7"]
[White "manitodeplomo"]
[Black "tantaan"]
[Result "1/2-1/2"]
[WhiteElo "2630"]
[BlackElo "2508"]
[TimeControl "180+1"]
[EndTime "9:21:15 PDT"]
[Termination "Game drawn by repetition"]

1. d4 {[%clk 0:03:00.9]} 1... Nf6 {[%clk 0:02:59.7]} 2. c4 {[%clk 0:03:00.3]}
2... e6 {[%clk 0:02:59.9]} 3. Nf3 {[%clk 0:03:00.2]} 3... Bb4+ {[%clk
0:02:59.7]} 4. Bd2 {[%clk 0:03:00.3]} 4... Qe7 {[%clk 0:03:00]} 5. g3 {[%clk
0:02:58.7]} 5... Bxd2+ {[%clk 0:02:50.5]} 6. Qxd2 {[%clk 0:02:58.4]} 6... Nc6
{[%clk 0:02:50.8]} 7. Nc3 {[%clk 0:02:56.5]} 7... d5 {[%clk 0:02:46.7]} 8. Bg2
{[%clk 0:02:54.1]} 8... dxc4 {[%clk 0:02:43.3]} 9. O-O {[%clk 0:02:53.6]} 9...
O-O {[%clk 0:02:43.2]} 10. Rfc1 {[%clk 0:02:41.2]} 10... Rd8 {[%clk 0:02:33.3]}
11. e3 {[%clk 0:02:40.9]} 11... Nb4 {[%clk 0:02:21.5]} 12. Ne5 {[%clk
0:02:30.4]} 12... c5 {[%clk 0:02:13.2]} 13. a3 {[%clk 0:02:03.5]} 13... Nd3
{[%clk 0:02:10.8]} 14. Nxd3 {[%clk 0:02:02.3]} 14... cxd4 {[%clk 0:02:07.1]} 15.
Ne5 {[%clk 0:01:50.1]} 15... dxc3 {[%clk 0:02:00.4]} 16. Qxc3 {[%clk 0:01:49.7]}
16... Bd7 {[%clk 0:01:44.9]} 17. Bxb7 {[%clk 0:01:38.3]} 17... Rab8 {[%clk
0:01:43.3]} 18. Bc6 {[%clk 0:01:38.2]} 18... Rdc8 {[%clk 0:01:28.8]} 19. Bxd7
{[%clk 0:01:16.2]} 19... Nxd7 {[%clk 0:01:26.8]} 20. Nxc4 {[%clk 0:01:16.2]}
20... h6 {[%clk 0:01:09.3]} 21. b4 {[%clk 0:01:06.3]} 21... Rc7 {[%clk
0:01:03.2]} 22. Qb2 {[%clk 0:00:55.1]} 22... Rbc8 {[%clk 0:00:58.4]} 23. Na5
{[%clk 0:00:53.2]} 23... Ne5 {[%clk 0:00:52.2]} 24. Rxc7 {[%clk 0:00:51]} 24...
Qxc7 {[%clk 0:00:48.4]} 25. Rd1 {[%clk 0:00:37.7]} 25... g5 {[%clk 0:00:42]} 26.
h3 {[%clk 0:00:35.1]} 26... Qc3 {[%clk 0:00:30.5]} 27. Qxc3 {[%clk 0:00:29.8]}
27... Rxc3 {[%clk 0:00:31.4]} 28. Rd8+ {[%clk 0:00:19.4]} 28... Kg7 {[%clk
0:00:28.3]} 29. Ra8 {[%clk 0:00:20.3]} 29... Rxa3 {[%clk 0:00:22.8]} 30. Rxa7
{[%clk 0:00:19.8]} 30... Ra1+ {[%clk 0:00:18.5]} 31. Kg2 {[%clk 0:00:19.5]}
31... Nd3 {[%clk 0:00:19.1]} 32. Nc6 {[%clk 0:00:14.2]} 32... Rxa7 {[%clk
0:00:18.3]} 33. Nxa7 {[%clk 0:00:14.3]} 33... Nxb4 {[%clk 0:00:19]} 34. Nb5
{[%clk 0:00:14.2]} 34... Kf6 {[%clk 0:00:18.1]} 35. Nd4 {[%clk 0:00:14.1]} 35...
Ke5 {[%clk 0:00:17.9]} 36. Nf3+ {[%clk 0:00:14]} 36... Kf6 {[%clk 0:00:18.1]}
37. Nh2 {[%clk 0:00:14.4]} 37... Nd5 {[%clk 0:00:18.1]} 38. Ng4+ {[%clk
0:00:14.4]} 38... Kg6 {[%clk 0:00:18.1]} 39. Ne5+ {[%clk 0:00:14.2]} 39... Kf6
{[%clk 0:00:18.1]} 40. Ng4+ {[%clk 0:00:13.5]} 40... Kg6 {[%clk 0:00:18.6]} 41.
Kf3 {[%clk 0:00:14.2]} 41... f5 {[%clk 0:00:17.4]} 42. Ne5+ {[%clk 0:00:13.8]}
42... Kf6 {[%clk 0:00:17.9]} 43. Nd7+ {[%clk 0:00:13.7]} 43... Ke7 {[%clk
0:00:18]} 44. Ne5 {[%clk 0:00:13.5]} 44... Kf6 {[%clk 0:00:18.4]} 45. Nd7+
{[%clk 0:00:13.7]} 45... Ke7 {[%clk 0:00:18.9]} 46. Ne5 {[%clk 0:00:12.7]} 46...
Kf6 {[%clk 0:00:19.5]} 1/2-1/2

[Event "Early-Titled-Tuesday-Blitz-April-16-2024"]
[Site "Chess.com"]
[Date "2024.04.16"]
[Round "7"]
[White "yonaltimur"]
[Black "Dinosaurio_1975"]
[Result "0-1"]
[WhiteElo "2433"]
[BlackElo "2583"]
[TimeControl "180+1"]
[EndTime "9:21:16 PDT"]
[Termination "Dinosaurio_1975 won by resignation"]

1. e4 {[%clk 0:03:00.9]} 1... c6 {[%clk 0:02:50.7]} 2. c4 {[%clk 0:02:59.7]}
2... d5 {[%clk 0:02:51.6]} 3. cxd5 {[%clk 0:03:00.6]} 3... cxd5 {[%clk
0:02:52.5]} 4. exd5 {[%clk 0:03:01.5]} 4... Nf6 {[%clk 0:02:50.5]} 5. Nc3 {[%clk
0:03:01.7]} 5... Nxd5 {[%clk 0:02:50.8]} 6. Bb5+ {[%clk 0:02:58.7]} 6... Nc6
{[%clk 0:02:50.4]} 7. Qa4 {[%clk 0:02:58.2]} 7... Nb6 {[%clk 0:02:49.5]} 8.
Bxc6+ {[%clk 0:02:55.4]} 8... bxc6 {[%clk 0:02:49.5]} 9. Qxc6+ {[%clk
0:02:56.3]} 9... Bd7 {[%clk 0:02:50.1]} 10. Qf3 {[%clk 0:02:56.8]} 10... g6
{[%clk 0:02:50]} 11. Nge2 {[%clk 0:02:57.1]} 11... Bg7 {[%clk 0:02:49.9]} 12.
O-O {[%clk 0:02:57.7]} 12... Rc8 {[%clk 0:02:49.5]} 13. d3 {[%clk 0:02:57.6]}
13... O-O {[%clk 0:02:48.1]} 14. Be3 {[%clk 0:02:56.8]} 14... Bc6 {[%clk
0:02:48.2]} 15. Qg3 {[%clk 0:02:56.6]} 15... Nd5 {[%clk 0:02:47.5]} 16. Nxd5
{[%clk 0:02:56.5]} 16... Qxd5 {[%clk 0:02:47.1]} 17. Nc3 {[%clk 0:02:46.9]}
17... Qxd3 {[%clk 0:02:45.2]} 18. Bxa7 {[%clk 0:02:44.9]} 18... Qc2 {[%clk
0:02:30.2]} 19. Rab1 {[%clk 0:02:37.3]} 19... Ra8 {[%clk 0:02:11.1]} 20. Rfc1
{[%clk 0:02:30]} 20... Qf5 {[%clk 0:02:05.7]} 21. Be3 {[%clk 0:02:17.8]} 21...
Rfb8 {[%clk 0:01:57.5]} 22. Bd2 {[%clk 0:02:11.8]} 22... Rb4 {[%clk 0:01:37.5]}
23. h3 {[%clk 0:01:49.9]} 23... Rc4 {[%clk 0:00:59.4]} 24. b3 {[%clk 0:01:45.1]}
24... Rc5 {[%clk 0:00:56.8]} 25. Rb2 {[%clk 0:01:36.4]} 25... Rd8 {[%clk
0:00:53.1]} 26. Rbc2 {[%clk 0:01:07.6]} 26... Be5 {[%clk 0:00:41.3]} 27. Qe3
{[%clk 0:01:02.6]} 27... Rd3 {[%clk 0:00:20.2]} 28. Qxc5 {[%clk 0:00:29.9]}
28... Bh2+ {[%clk 0:00:18.9]} 29. Kxh2 {[%clk 0:00:30.7]} 29... Qxc5 {[%clk
0:00:19.2]} 30. Ne2 {[%clk 0:00:30.4]} 30... Qxf2 {[%clk 0:00:14.7]} 31. Rxc6
{[%clk 0:00:16.1]} 31... Rxd2 {[%clk 0:00:14.7]} 32. Rc8+ {[%clk 0:00:11.1]}
32... Kg7 {[%clk 0:00:14.4]} 33. R1c2 {[%clk 0:00:11.8]} 33... Qxe2 {[%clk
0:00:12.7]} 34. Rxd2 {[%clk 0:00:10.7]} 34... Qxd2 {[%clk 0:00:13.6]} 35. a4
{[%clk 0:00:06.6]} 35... Qb4 {[%clk 0:00:13]} 36. a5 {[%clk 0:00:04.6]} 36...
Qxa5 {[%clk 0:00:12.7]} 37. Rc4 {[%clk 0:00:04.4]} 37... Qe5+ {[%clk 0:00:12.4]}
38. Kg1 {[%clk 0:00:03.8]} 38... Qe3+ {[%clk 0:00:12.2]} 39. Kf1 {[%clk
0:00:04.1]} 39... Qd3+ {[%clk 0:00:12.1]} 0-1

[Event "Early-Titled-Tuesday-Blitz-April-16-2024"]
[Site "Chess.com"]
[Date "2024.04.16"]
[Round "7"]
[White "Orphanator2009"]
[Black "maracayo"]
[Result "1/2-1/2"]
[WhiteElo "2518"]
[BlackElo "2378"]
[TimeControl "180+1"]
[EndTime "9:21:17 PDT"]
[Termination "Game drawn by repetition"]

1. e4 {[%clk 0:03:00.9]} 1... d6 {[%clk 0:02:59.8]} 2. d4 {[%clk 0:03:00.7]}
2... Nf6 {[%clk 0:03:00.4]} 3. Nc3 {[%clk 0:03:01.2]} 3... c6 {[%clk 0:03:00.8]}
4. Nf3 {[%clk 0:02:57.1]} 4... Qa5 {[%clk 0:03:00.6]} 5. Bd2 {[%clk 0:02:51]}
5... e5 {[%clk 0:02:59]} 6. dxe5 {[%clk 0:02:47.8]} 6... dxe5 {[%clk 0:02:59.9]}
7. Nd5 {[%clk 0:02:46.8]} 7... Qd8 {[%clk 0:02:59.3]} 8. Nxf6+ {[%clk
0:02:47.3]} 8... Qxf6 {[%clk 0:02:59.9]} 9. Bc3 {[%clk 0:02:44.7]} 9... Bd6
{[%clk 0:02:58.7]} 10. Bc4 {[%clk 0:02:45.3]} 10... O-O {[%clk 0:02:57.5]} 11.
O-O {[%clk 0:02:45.4]} 11... Nd7 {[%clk 0:02:56]} 12. Qe2 {[%clk 0:02:45.2]}
12... b5 {[%clk 0:02:54.3]} 13. Bb3 {[%clk 0:02:44.9]} 13... a5 {[%clk
0:02:54.1]} 14. a4 {[%clk 0:02:44]} 14... Nc5 {[%clk 0:02:37.3]} 15. axb5 {[%clk
0:02:37.8]} 15... Nxb3 {[%clk 0:02:28.2]} 16. cxb3 {[%clk 0:02:38.7]} 16... cxb5
{[%clk 0:02:27.6]} 17. Rxa5 {[%clk 0:02:37.2]} 17... Rxa5 {[%clk 0:02:11.9]} 18.
Bxa5 {[%clk 0:02:38.1]} 18... Bg4 {[%clk 0:01:34.6]} 19. Rd1 {[%clk 0:02:33]}
19... Rc8 {[%clk 0:01:12.3]} 20. h3 {[%clk 0:02:24.4]} 20... Bh5 {[%clk
0:01:10.2]} 21. Qxb5 {[%clk 0:01:22.5]} 21... Bxf3 {[%clk 0:01:03.8]} 22. Qd7
{[%clk 0:01:22.1]} 22... Bxd1 {[%clk 0:00:17.6]} 23. Qxc8+ {[%clk 0:01:20.4]}
23... Bf8 {[%clk 0:00:18.5]} 24. Bb4 {[%clk 0:01:20.8]} 24... h5 {[%clk
0:00:18]} 25. Qxf8+ {[%clk 0:01:20.6]} 25... Kh7 {[%clk 0:00:17.9]} 26. Qd6
{[%clk 0:01:18.7]} 26... Bxb3 {[%clk 0:00:15.7]} 27. Qxf6 {[%clk 0:01:17.5]}
27... gxf6 {[%clk 0:00:16.6]} 28. f3 {[%clk 0:01:15]} 28... Kg6 {[%clk
0:00:15.3]} 29. Kf2 {[%clk 0:01:15.2]} 29... f5 {[%clk 0:00:15.1]} 30. Bc3
{[%clk 0:01:14.4]} 30... f6 {[%clk 0:00:14]} 31. exf5+ {[%clk 0:01:12.3]} 31...
Kxf5 {[%clk 0:00:13.8]} 32. g4+ {[%clk 0:01:12.7]} 32... hxg4 {[%clk 0:00:13.5]}
33. fxg4+ {[%clk 0:01:13.6]} 33... Ke4 {[%clk 0:00:11]} 34. Kg3 {[%clk 0:01:09]}
34... f5 {[%clk 0:00:09.6]} 35. gxf5 {[%clk 0:01:06.6]} 35... Kxf5 {[%clk
0:00:09.2]} 36. h4 {[%clk 0:01:06]} 36... Bd1 {[%clk 0:00:08.4]} 37. b4 {[%clk
0:01:05.6]} 37... Ke4 {[%clk 0:00:07.8]} 38. b5 {[%clk 0:01:04.5]} 38... Kd5
{[%clk 0:00:07.7]} 39. Bd2 {[%clk 0:01:02.9]} 39... Kc5 {[%clk 0:00:06.9]} 40.
Bc3 {[%clk 0:01:00.7]} 40... Kxb5 {[%clk 0:00:06.8]} 41. Bxe5 {[%clk 0:01:01.1]}
41... Kc4 {[%clk 0:00:07.2]} 42. Kf4 {[%clk 0:01:02]} 42... Kd5 {[%clk
0:00:07.4]} 43. Bf6 {[%clk 0:01:02.7]} 43... Ke6 {[%clk 0:00:07.6]} 44. Kg5
{[%clk 0:01:02.8]} 44... Kf7 {[%clk 0:00:07.7]} 45. Bd4 {[%clk 0:01:03.6]} 45...
Kg8 {[%clk 0:00:07.8]} 46. Kh6 {[%clk 0:01:04.3]} 46... Bc2 {[%clk 0:00:07.3]}
47. Be3 {[%clk 0:01:05.2]} 47... Bh7 {[%clk 0:00:07.3]} 48. Bf4 {[%clk
0:01:06.1]} 48... Be4 {[%clk 0:00:07.7]} 49. Kg5 {[%clk 0:01:07]} 49... Bd3
{[%clk 0:00:08.3]} 50. Kf6 {[%clk 0:01:07.4]} 50... Bc2 {[%clk 0:00:09]} 51. Bg5
{[%clk 0:01:06.6]} 51... Kh7 {[%clk 0:00:09.9]} 52. Ke5 {[%clk 0:01:07.5]} 52...
Bb1 {[%clk 0:00:09.7]} 53. Kd4 {[%clk 0:01:08.4]} 53... Bc2 {[%clk 0:00:10.2]}
54. Kc3 {[%clk 0:01:09.3]} 54... Bg6 {[%clk 0:00:10.6]} 55. Kd2 {[%clk
0:01:09.6]} 55... Bh5 {[%clk 0:00:11.5]} 56. Ke3 {[%clk 0:01:10.5]} 56... Bg6
{[%clk 0:00:12.1]} 57. Kf4 {[%clk 0:01:11.4]} 57... Bh5 {[%clk 0:00:12.4]} 58.
Kg3 {[%clk 0:01:12.1]} 58... Bg6 {[%clk 0:00:12.5]} 59. Kg4 {[%clk 0:01:13]}
59... Bf7 {[%clk 0:00:12.5]} 60. Kf5 {[%clk 0:01:13.1]} 60... Bh5 {[%clk
0:00:12.6]} 61. Kf6 {[%clk 0:01:13.7]} 61... Bg6 {[%clk 0:00:12.4]} 62. Bf4
{[%clk 0:01:14.4]} 62... Bh5 {[%clk 0:00:12.7]} 63. Kg5 {[%clk 0:01:15.3]} 63...
Bg6 {[%clk 0:00:12.9]} 64. Bg3 {[%clk 0:01:14]} 64... Bf7 {[%clk 0:00:12.5]} 65.
Be5 {[%clk 0:01:14.9]} 65... Bg8 {[%clk 0:00:09]} 66. Kf6 {[%clk 0:01:15.8]}
66... Ba2 {[%clk 0:00:08.4]} 67. Bf4 {[%clk 0:01:15.7]} 67... Bb1 {[%clk
0:00:09.3]} 68. Bg5 {[%clk 0:01:16.3]} 68... Ba2 {[%clk 0:00:10.2]} 69. Ke5
{[%clk 0:01:17]} 69... Bb1 {[%clk 0:00:11.1]} 70. Kd4 {[%clk 0:01:17.8]} 70...
Ba2 {[%clk 0:00:12]} 71. Ke3 {[%clk 0:01:18.7]} 71... Bb1 {[%clk 0:00:12.9]} 72.
Kd2 {[%clk 0:01:19.6]} 72... Bg6 {[%clk 0:00:13.3]} 73. Kc3 {[%clk 0:01:20.5]}
73... Bh5 {[%clk 0:00:13.8]} 74. Kd4 {[%clk 0:01:21.4]} 74... Bg6 {[%clk
0:00:14.3]} 75. Ke3 {[%clk 0:01:22.3]} 75... Bh5 {[%clk 0:00:14.7]} 76. Kf4
{[%clk 0:01:23.2]} 76... Bg6 {[%clk 0:00:15.1]} 77. Kg3 {[%clk 0:01:24.1]} 77...
Bb1 {[%clk 0:00:15.5]} 78. Kg4 {[%clk 0:01:25]} 78... Ba2 {[%clk 0:00:16.1]} 79.
Kh5 {[%clk 0:01:25.9]} 79... Bb1 {[%clk 0:00:16.6]} 80. Kg4 {[%clk 0:01:23.9]}
80... Ba2 {[%clk 0:00:17.1]} 81. Kg3 {[%clk 0:01:23.2]} 81... Bb3 {[%clk
0:00:17.5]} 82. Bf4 {[%clk 0:01:23.3]} 82... Ba2 {[%clk 0:00:18.4]} 83. Bg5
{[%clk 0:01:24.2]} 83... Bb3 {[%clk 0:00:18.7]} 84. Bf4 {[%clk 0:01:25.1]} 84...
Ba2 {[%clk 0:00:19.4]} 85. Bg5 {[%clk 0:01:26]} 1/2-1/2